Cogmind - Beta 12 X4 @@@ ROGUE MODE // 2022.12.10 @ 23:30:11 Player: Jezoensis Result: Destroyed by H-88 Terminator with KE Penetrator Performance ------------- Evolutions (9) 4500 Regions Visited (29) 5800 Robots Destroyed (309) 1545 Value Destroyed (13045) 13045 Prototype IDs (64) 1280 Alien Tech Used (1) 200 Bonus (9383) 9383 TOTAL SCORE: 35753 Bonus ------- High Alert Combat Kills 1515 Follower Combat Kills 566 Met Data Miner 300 Met Imprinter 300 Met Zhirov 300 Met Warlord at Base 500 MAIN.C Attacked Warlord 500 Warlord Defense Kills 2966 Acquired SGEMP 2000 Delivered SGEMP 2000 Friendly Fire -1564 Cogmind --------- Core Integrity 0/1600 Matter 237/300 Energy 99/100 System Corruption 0% Temperature Cool (0) Movement Core (50) Location -1/Access Parts ------- > --- POWER (2) -------- (None) > --- PROPULSION (5) --- Improved Gyrokinetic Inverter Improved Gyrokinetic Inverter Improved Gyrokinetic Inverter > --- UTILITY (13) ----- (None) > --- WEAPON (5) ------- (None) > --- INVENTORY (5) ---- Improved Potential Cannon Peak State ------------ > --- POWER ------------ Fusion Reactor Micro Antimatter Reactor > --- PROPULSION ------- Improved Treads Armored Heavy Treads Improved Heavy Siege Treads > --- UTILITY ---------- 2N-1CE's Frost Array Huge Storage Unit Long-range Sensor Array Advanced Signal Interpreter Advanced Terrain Scan Processor Salvage Targeting Computer Experimental Target Analyzer Armor Integrity Analyzer Improved Transmission Jammer Experimental Utility Shielding Improved Force Field > --- WEAPON ----------- Gamma Rifle Gamma Rifle Enhanced Coil Gun Helical Railgun Helical Railgun > --- INVENTORY -------- Mini Fusion Reactor Experimental Power Amplifier High-capacity Storage Unit Experimental Energy Well Experimental Matter Compressor Experimental Matter Compressor Long-range Sensor Array Long-range Sensor Array Advanced Terrain Scanner Heavy Insulated Plating Graphene Brace Improved Focal Shield Advanced Thermal Shield Improved Force Field Advanced Remote Shield Long-range Tractor Beam Matter Neutralizer Improved Potential Cannon Light Antimatter Cannon Tesla Bomb Launcher Advanced Remote Datajack SGEMP Prototype [Rating: 170] Favorites ----------- Power Improved Deuterium Engine Engine Improved Deuterium Engine Power Core Fission Core Reactor Vortex Chain Reactor Propulsion Medium Treads Treads Medium Treads Leg Carbon-fiber Leg Wheel Wheel Hover Unit Improved Gyrokinetic Inverter Utility Advanced Terrain Scan Processor Device Advanced Terrain Scanner Storage High-capacity Storage Unit Processor Advanced Terrain Scan Processor Hackware Makeshift Hacking Suite Protection Experimental Utility Shielding Weapon KE Penetrator Energy Gun Gamma Rifle Energy Cannon Advanced Plasma Cannon Ballistic Gun KE Penetrator Ballistic Cannon Light Antimatter Cannon Launcher Scatter Rocket Array Special Weapon Mining Laser Impact Weapon Makeshift Hammer Build | -11 -10 -10 -10 -9 -8 -7 -7 -7 -7 -6 -6 -6 -6 -6 -5 -5 -5 -5 -5 -4 -4 -4 -4 -4 -3 -3 -3 -2 -1 ------- Run | Scr Mat Min Exi Min Mat Fac Low Low Zio Pro Fac Low Low Dat Pro Fac Upp Upp War Pro Fac Upp Upp Zhi Pro Res Tes Res Acc Slots Evolved 18 | . . . . . 4 2 . . . . 2 . . . . 2 . . . . 2 . . . . 2 . 2 2 Power 1 | . . . . . . . . . . . . . . . . . . . . . 1 . . . . . . . . Propulsion 3 | . . . . . 1 . . . . . 1 . . . . . . . . . 1 . . . . . . . . Utility 11 | . . . . . 2 1 . . . . 1 . . . . 2 . . . . . . . . . 2 . 1 2 Weapon 3 | . . . . . 1 1 . . . . . . . . . . . . . . . . . . . . . 1 . Parts Attached 685 | 8 29 8 2 4 47 19 7 . 3 6 45 17 18 . 19 145 4 2 47 10 50 6 . 6 18 40 74 40 11 Power 34 | 1 1 . . . 3 1 . . . . 2 1 . . . 9 . . 3 1 3 . . . 2 . 5 1 1 Engine 10 | 1 1 . . . . 1 . . . . 1 . . . . 4 . . 2 . . . . . . . . . . Core 6 | . . . . . 3 . . . . . 1 1 . . . 1 . . . . . . . . . . . . . Reactor 18 | . . . . . . . . . . . . . . . . 4 . . 1 1 3 . . . 2 . 5 1 1 Propulsion 93 | 3 10 3 1 1 9 . 2 . . . 7 1 1 . 2 21 . . 1 3 3 . . . 2 2 4 9 8 Treads 65 | . 5 1 . . 8 . 2 . . . 7 1 1 . 2 13 . . 1 3 3 . . . 2 2 4 6 4 Leg 4 | . . . . . . . . . . . . . . . . 3 . . . . . . . . . . . 1 . Wheel 19 | 3 5 2 1 1 1 . . . . . . . . . . 5 . . . . . . . . . . . 1 . Hover 5 | . . . . . . . . . . . . . . . . . . . . . . . . . . . . 1 4 Flight . | . . . . . . . . . . . . . . . . . . . . . . . . . . . . . . Utility 366 | 2 6 4 . 1 16 15 5 . 3 6 31 11 10 . 9 74 . . 23 1 32 3 . 2 12 33 44 23 . Device 297 | 1 4 2 . 1 7 12 4 . 2 6 28 11 10 . 8 63 . . 19 1 27 2 . 1 11 28 29 20 . Storage 22 | 1 2 . . . 2 1 1 . . . . . . . 1 3 . . 1 . 2 . . . . 2 6 . . Processor 25 | . . . . . 4 2 . . 1 . 3 . . . . 7 . . 1 . 1 . . . . 2 1 3 . Hackware 4 | . . . . . 2 . . . . . . . . . . 1 . . . . 1 . . . . . . . . Protection 18 | . . 2 . . 1 . . . . . . . . . . . . . 2 . 1 1 . 1 1 1 8 . . Artifact . | . . . . . . . . . . . . . . . . . . . . . . . . . . . . . . Weapon 192 | 2 12 1 1 2 19 3 . . . . 5 4 7 . 8 41 4 2 20 5 12 3 . 4 2 5 21 7 2 Energy Gun 15 | 1 1 . 1 1 8 . . . . . . . 1 . . . . . . . . . . . . . 1 1 . Energy Cannon 36 | . . . . . . . . . . . . . . . 2 8 1 1 8 2 2 . . . . 2 8 . 2 Ballistic Gun 106 | 1 4 1 . . 5 2 . . . . 5 3 4 . 4 32 2 1 9 3 9 2 . 4 1 3 7 4 . Ballistic Cannon 5 | . . . . . . . . . . . . . . . . . . . . . 1 . . . 1 . 3 . . Launcher 19 | . 4 . . 1 1 1 . . . . . . 1 . 2 1 1 . 3 . . 1 . . . . 2 1 . Special Weapon 9 | . 3 . . . 5 . . . . . . . . . . . . . . . . . . . . . . 1 . Impact Weapon 2 | . . . . . . . . . . . . 1 1 . . . . . . . . . . . . . . . . Slashing Weapon . | . . . . . . . . . . . . . . . . . . . . . . . . . . . . . . Piercing Weapon . | . . . . . . . . . . . . . . . . . . . . . . . . . . . . . . Special Melee Weapon . | . . . . . . . . . . . . . . . . . . . . . . . . . . . . . . Unidentified Prototypes 36 | . . . . 1 2 2 . . 1 . 2 . . . . 3 . . 6 . 2 . . 2 . 3 11 1 . Corrupted Parts 4 | . . . . . 1 . . . . . . . . . . . . . . . . . . . . . . 3 . System Corruption 35 | . . . . . 1 . . . . . . . . . . . . . . . . . . . . . . 34 . Parts Lost 104 | . 4 . . . 6 . 1 . . . 5 . . . 1 34 . . 6 . 6 . . . 3 1 14 18 5 Power 10 | . 1 . . . 1 . . . . . . . . . . 2 . . 1 . . . . . . . 1 3 1 Propulsion 40 | . 1 . . . 1 . 1 . . . 3 . . . . 13 . . 3 . 1 . . . 2 . 5 6 4 Utility 21 | . 1 . . . 1 . . . . . 2 . . . . 8 . . . . 2 . . . . 1 3 3 . Weapon 33 | . 1 . . . 3 . . . . . . . . . 1 11 . . 2 . 3 . . . 1 . 5 6 . Highest Loss Streak 14 | . 4 . . . 6 . 1 . . . 5 . . . 1 14 . . 6 . 4 . . . 3 1 7 11 2 To Critical Strikes 3 | . . . . . . . . . . . . . . . . 1 . . . . 1 . . . . . . . 1 Average Slot Usage (%) 88 | . 98 100 100 100 97 75 75 76 75 76 83 100 100 100 99 92 100 100 99 64 88 89 89 63 91 95 89 78 11 Engine 3 | . 14 14 14 14 2 5 7 7 7 7 2 . . . . 1 5 5 4 . . . . . . . . . . Core 1 | . . . . . 6 1 . . . . 3 6 6 6 6 2 . . . . . . . . . . . . . Reactor 2 | . . . . . . . . . . . . . . . . 1 . . . 5 4 5 5 5 8 9 6 6 . Treads 19 | . 4 . . . 18 23 22 23 23 23 25 26 26 26 26 18 23 23 22 23 21 21 21 21 20 19 16 10 3 Wheel 2 | . 22 27 28 28 8 . . . . . . . . . . 1 . . . . . . . . . . . . . Device 16 | . 13 12 14 14 10 16 15 15 14 15 18 13 13 13 13 14 17 17 16 11 22 25 26 21 25 23 19 13 . Storage 6 | . 14 14 14 14 9 7 7 7 7 7 6 6 6 6 6 4 5 5 5 5 5 5 5 5 5 6 4 3 . Processor 15 | . . . . . 9 13 15 15 15 15 14 20 20 20 20 20 23 23 22 17 11 10 10 10 10 16 18 20 . Ballistic Gun 15 | . 21 26 20 14 18 7 7 7 7 7 9 25 24 26 24 20 17 21 19 . 19 20 21 . 16 17 14 11 . Naked Turns 20 | . . . . . . . . . . . . . . . . . . . . . . . . . . . . 17 3 Heaviest Build 158 | 13 29 29 28 30 98 47 67 67 67 67 72 67 67 67 110 82 76 76 152 108 153 153 153 153 153 150 158 150 20 Greatest Support 163 | 20 20 20 26 26 60 60 68 68 68 68 104 104 104 96 112 107 107 107 112 102 154 154 154 154 154 153 158 163 150 Greatest Overweight (x) 26 | . 1 1 1 1 2 . . . . . . . . . . 6 . . 1 1 . . . . . . . 26 . Average Overweight (x) . | . . 1 1 1 . . . . . . . . . . . . . . . . . . . . . . . . . Largest Inventory Capacity 25 | 8 15 15 15 15 25 25 20 20 20 20 20 20 20 20 25 25 20 20 25 25 25 25 25 25 25 25 25 25 5 Average Capacity 20 | 7 12 15 15 15 15 15 17 20 20 20 20 20 20 20 24 19 20 20 22 25 21 25 25 25 25 25 24 22 5 Most Carried 25 | 7 15 15 15 15 16 18 18 18 20 20 20 20 20 20 24 22 20 20 25 24 24 23 25 25 25 25 25 25 5 Average Carried 19 | 4 10 14 14 14 14 14 16 18 19 20 19 19 19 20 22 18 20 19 21 23 19 22 24 24 22 23 23 22 2 Final Capacity 25 | 8 15 15 15 15 25 15 20 20 20 20 20 20 20 20 25 20 20 20 25 25 25 25 25 25 25 25 25 5 5 Final Carried 25 | 7 15 15 15 15 16 15 18 18 20 20 20 20 20 20 23 20 20 20 25 24 23 23 25 25 22 25 25 5 2 Class Distribution -------------------- 65% | Scavenger-Skirmisher 15% | Scavenger-Mutant 11% | Mutant 3% | Scavenger-Gunner 3% | Skirmisher Dominant Class ---------------- Mutant | -10/Materials Mutant | -10/Mines Mutant | -10/Exiles Mutant | -9/Mines Scavenger-Gunner | -8/Materials Scavenger-Skirmisher | -7/Factory Scavenger-Skirmisher | -7/Lower Caves Scavenger-Skirmisher | -7/Lower Caves Scavenger-Skirmisher | -7/Zion Scavenger-Skirmisher | -6/Proximity Caves Scavenger-Skirmisher | -6/Factory Scavenger-Skirmisher | -6/Lower Caves Scavenger-Skirmisher | -6/Lower Caves Scavenger-Skirmisher | -6/Data Miner Scavenger-Skirmisher | -5/Proximity Caves Scavenger-Skirmisher | -5/Factory Scavenger-Mutant | -5/Upper Caves Scavenger-Skirmisher | -5/Upper Caves Scavenger-Skirmisher | -5/Warlord Scavenger-Mutant | -4/Proximity Caves Scavenger-Skirmisher | -4/Factory Scavenger-Skirmisher | -4/Upper Caves Scavenger-Skirmisher | -4/Upper Caves Scavenger-Mutant | -4/Zhirov Scavenger-Skirmisher | -3/Proximity Caves Scavenger-Skirmisher | -3/Research Scavenger-Skirmisher | -3/Testing Scavenger-Skirmisher | -2/Research Mutant | -1/Access Resources | -11 -10 -10 -10 -9 -8 -7 -7 -7 -7 -6 -6 -6 -6 -6 -5 -5 -5 -5 -5 -4 -4 -4 -4 -4 -3 -3 -3 -2 -1 ----------- Run | Scr Mat Min Exi Min Mat Fac Low Low Zio Pro Fac Low Low Dat Pro Fac Upp Upp War Pro Fac Upp Upp Zhi Pro Res Tes Res Acc Matter Collected 18551 | 299 265 203 130 80 578 347 285 40 80 199 1515 559 384 . 275 3682 74 420 1196 66 978 560 49 250 535 1813 1690 1974 25 Remotely 7912 | . . . . . . . . . . . 899 215 114 . 171 1400 . . 828 . 577 83 . . 382 1317 565 1361 . Salvage Created 16621 | 121 325 176 . 51 732 447 308 . . 217 1459 290 484 . 157 5172 45 187 801 41 808 83 . . 518 1626 868 1569 136 Parts 937 | 14 20 20 . 2 46 24 22 . . 18 81 17 23 . 11 312 1 4 30 1 42 3 . . 26 90 58 70 2 Haulers Intercepted 12 | . 1 . . . 2 1 . . . . 2 . . . . 4 . . . . 1 . . . . 1 . . . Recyclers Shooed 13 | . . 1 . . 3 3 . . . . 1 . . . . 4 . . . . . . . . . . 1 . . Parts Field Recycled . | . . . . . . . . . . . . . . . . . . . . . . . . . . . . . . Retrieved Matter . | . . . . . . . . . . . . . . . . . . . . . . . . . . . . . . Parts Self-Destructed 120 | . . . . . . . 13 . . 20 . 21 23 . 11 . . 1 . 2 . 3 . . 26 . . . . Prevented 7 | . . . . . . . . . . . . . . . . . . . . 3 . . . . 4 . . . . Kills | -11 -10 -10 -10 -9 -8 -7 -7 -7 -7 -6 -6 -6 -6 -6 -5 -5 -5 -5 -5 -4 -4 -4 -4 -4 -3 -3 -3 -2 -1 ------- Run | Scr Mat Min Exi Min Mat Fac Low Low Zio Pro Fac Low Low Dat Pro Fac Upp Upp War Pro Fac Upp Upp Zhi Pro Res Tes Res Acc Combat Hostiles Destroyed 219 | . 11 3 . 5 10 4 7 . . 8 12 4 7 . 7 56 . 1 25 . 9 1 . . 7 16 11 12 3 Guns 171 | . 9 3 . 1 7 4 7 . . 8 12 4 6 . 2 55 . 1 . . 9 1 . . 7 16 10 9 . Cannons 8 | . . . . . . . . . . . . . . . . . . . 7 . . . . . . . . . 1 AOE 36 | . 2 . . 4 3 . . . . . . . . . 5 1 . . 18 . . . . . . . 1 . 2 Classes Destroyed 26 | 1 4 2 . 1 5 1 1 . . . 2 . 2 . . 3 . . 2 . . . . . . . 1 1 . Worker 15 | . 1 . . 1 1 . . . . . 1 . . . . 10 . . . . . . . . . . . . 1 Builder 20 | . . 2 . . 2 . . . . . 1 . . . . 6 . . . . 3 . . . . 5 1 . . Tunneler 8 | 5 . 1 . . . . . . . . . . . . . . . . . . 2 . . . . . . . . Hauler 12 | . 1 . . . 2 1 . . . . 2 . . . . 4 . . . . 1 . . . . 1 . . . Recycler 20 | . . 1 . . 2 2 . . . . 3 . . . . 6 . . . . . . . . . 2 . 4 . Mechanic 3 | . . . . . . . . . . . . . . . . 2 . . . . . . . . . . 1 . . Operator 1 | . . . . . . . . . . . 1 . . . . . . . . . . . . . . . . . . Watcher 9 | . . . . . 1 1 . . . . 1 . . . . 2 . . . . 1 . . . . 2 1 . . Swarmer 54 | . 6 3 . . 3 . 7 . . 8 2 . . . 5 8 . . 4 . . . . . . 4 . 2 2 Saboteur 2 | . . . . . . . . . . . . . . . . 2 . . . . . . . . . . . . . Grunt 60 | . 5 . . . 3 . . . . . 3 2 4 . 2 16 . 1 11 . 2 . . . 5 5 1 . . Brawler 5 | . . . . . . . . . . . . 1 1 . . 2 . . . . 1 . . . . . . . . Duelist 5 | . . . . . . . . . . . . . 1 . . 3 . . . . 1 . . . . . . . . Protector 5 | . . . . . . . . . . . . . . . . 1 . . 4 . . . . . . . . . . Sentry 12 | . . . . . 1 2 . . . . 2 1 . . . 2 . . . . 1 1 . . 1 . . 1 . Specialist 5 | . . . . . 1 . . . . . . . . . . 4 . . . . . . . . . . . . . Hunter 20 | . . . . . 1 1 . . . . 4 . . . . 10 . . . . . . . . . . . 3 1 Programmer 31 | . . . . . . 1 . . . . 1 . . . . 8 . . 3 . 4 . . . 1 6 7 . . Heavy 2 | . . . . . 1 . . . . . . . . . . . . . . . . . . . . 1 . . . Behemoth 1 | . . . . . . . . . . . . . . . . . . . . . . . . . . . . 1 . Striker 4 | . . . . . . . . . . . . . . . . . . . 1 . . . . . . . 2 1 . Executioner 6 | . . . . . . . . . . . . . . . . . . . 2 . . . . . . . . 4 . Alpha 7 1 | . . . . . . . . . . . . . . . . . . . . . . . . . . . 1 . . Samaritan 8 | . . . . . . . 3 . . . . . . . . . 1 3 . 1 . . . . . . . . . Assembled 5 | . . . . 5 . . . . . . . . . . . . . . . . . . . . . . . . . Wasp 1 | . . . . . . . . . . 1 . . . . . . . . . . . . . . . . . . . Thug 3 | . . . . . . . . . . . 1 . . . . . . . 2 . . . . . . . . . . Savage 2 | . . . . . . . . . . . 1 . . . . . . . 1 . . . . . . . . . . Mutant 1 | . . . . . . . . . . . . . 1 . . . . . . . . . . . . . . . . Commander 1 | . . . . . . . . . . . . . . . . . . . 1 . . . . . . . . . . Best Kill Streak 15 | 5 6 4 . 4 7 3 4 . . 5 5 3 3 . 5 15 . 1 8 . 5 1 . . 5 14 4 5 3 Combat Bots Only 11 | . 6 2 . 4 4 2 4 . . 5 4 3 3 . 5 11 . 1 8 . 3 1 . . 5 7 3 5 3 Max Kills in Single Turn 7 | 1 2 1 . 3 2 2 2 . . 1 2 1 2 . 3 2 1 1 7 1 2 1 . . 1 2 1 2 3 Gunslinging 1 | . . . . . 1 . . . . . . . 1 . . 1 . . . . . . . . . 1 . 1 . Exploded 6 | . 1 . . 3 2 . . . . . . . . . 3 1 . . 6 . . . . . . . 1 . 2 Melee . | . . . . . . . . . . . . . . . . . . . . . . . . . . . . . . Uniques/NPCs Destroyed . | . . . . . . . . . . . . . . . . . . . . . . . . . . . . . . Combat | -11 -10 -10 -10 -9 -8 -7 -7 -7 -7 -6 -6 -6 -6 -6 -5 -5 -5 -5 -5 -4 -4 -4 -4 -4 -3 -3 -3 -2 -1 -------- Run | Scr Mat Min Exi Min Mat Fac Low Low Zio Pro Fac Low Low Dat Pro Fac Upp Upp War Pro Fac Upp Upp Zhi Pro Res Tes Res Acc Damage Taken 24979 | . 453 85 . 45 766 130 194 . . 13 1568 228 113 . 238 4661 . 37 1400 . 1008 156 67 . 315 922 3150 5138 4292 Core 4502 | . 43 7 . . 77 6 30 . . . 163 15 . . 55 472 . . 290 . . 15 11 . 18 55 191 1442 1612 Absorbed by Shields 3643 | . . . . . . . . . . . 68 50 . . . 1142 . . . . 378 160 71 . 301 651 762 60 . Reduced by Siege Mode 982 | . . . . . . . . . . . . . . . . . . . . . 31 8 . . 21 61 492 369 . Redirected to Shielding 167 | . . . . . . . . . . . . . . . . . . . . . . . . . . . 48 119 . Regen/Repaired (Parts) 388 | . . . . . . . . . 24 . . . . . . . . . 364 . . . . . . . . . . Core Remaining (%) 70 | 100 . . . 80 86 . . . . 94 . . . . 72 . . . . 23 . . . . 96 . 81 . . Volleys Fired 713 | 7 41 16 . 8 37 17 14 6 . 15 71 11 19 . 12 167 10 7 28 7 33 5 8 . 10 50 78 35 1 Largest 5 | 2 2 2 . 2 3 1 1 1 . 1 4 4 4 . 4 4 4 4 4 3 4 4 4 . 4 4 4 5 1 Hottest 286 | 70 100 40 . 70 100 60 60 60 . 60 96 96 120 . 98 127 128 119 228 99 142 142 142 . 159 197 181 286 200 Shots Fired 1878 | 14 75 32 . 12 81 17 14 6 . 15 103 44 67 . 19 565 17 28 59 11 110 18 20 . 39 165 208 138 1 Gun 1719 | 14 68 32 . 10 73 17 14 6 . 15 103 44 65 . 10 546 9 28 21 6 105 18 20 . 38 153 170 134 . Cannon 122 | . . . . . . . . . . . . . . . 5 19 8 . 29 5 5 . . . 1 12 35 2 1 Launcher 28 | . 4 . . 2 3 . . . . . . . 2 . 4 . . . 9 . . . . . . . 3 1 . Special 9 | . 3 . . . 5 . . . . . . . . . . . . . . . . . . . . . . 1 . Kinetic 1633 | 7 50 32 . 6 51 17 14 6 . 15 103 44 60 . 10 546 9 28 21 6 105 18 20 . 39 153 172 101 . Thermal 132 | 7 21 . . 4 16 . . . . . . . . . 5 19 8 . . 5 5 . . . . 12 27 2 1 Explosive 24 | . 4 . . 2 3 . . . . . . . 2 . 4 . . . 9 . . . . . . . . . . Electromagnetic 59 | . . . . . 11 . . . . . . . 5 . . . . . . . . . . . . . 9 34 . Entropic 29 | . . . . . . . . . . . . . . . . . . . 29 . . . . . . . . . . Robot Hit Streak 58 | 5 14 9 . 6 12 6 6 . . 2 11 10 12 . 6 17 7 13 16 11 14 7 . . 16 26 58 24 1 Robot Miss Streak 7 | 4 3 3 . 1 2 3 6 . . 5 6 2 3 . 1 7 . 4 3 . 6 1 1 . 1 6 4 4 . Penetration Max 2 | . . . . . . . . . . . . 1 1 . . 2 . 1 2 . 1 . . . 1 1 1 1 . Secondary Targets 54 | . . . . . 2 . . . . . 2 1 3 . 1 24 . . . . 2 . . . 4 10 1 4 . Max Gunslinging Chain 2 | . . . . . 1 . . . . . 1 1 1 . 1 2 . . . . 1 . . . 1 1 1 2 . Shots Hit Robots 1200 | 8 47 19 . 6 51 13 12 . . 10 70 32 41 . 8 353 5 16 38 6 66 10 . . 32 107 147 102 1 Core Hits 676 | 5 20 10 . 10 27 12 13 . . 9 46 11 18 . 15 195 2 9 89 3 30 4 . . 17 52 39 36 4 Critical Kills 22 | . . . . . . . . . . . . . . . . 10 . . . . 1 . . . 2 2 4 3 . Critical Parts Destroyed 40 | . . . . . . . . . . . . 1 . . . 13 . . . . 1 . . . 1 6 8 10 . Critical Strikes 92 | 2 1 . . . 2 . . . . . . 1 . . . 23 . . 18 . 2 . . . 3 8 16 16 . Burn 5 | 2 1 . . . 2 . . . . . . . . . . . . . . . . . . . . . . . . Destroy 65 | . . . . . . . . . . . . 1 . . . 23 . . . . 2 . . . 3 8 14 14 . Blast 1 | . . . . . . . . . . . . . . . . . . . . . . . . . . . 1 . . Corrupt 3 | . . . . . . . . . . . . . . . . . . . . . . . . . . . 1 2 . Sunder 18 | . . . . . . . . . . . . . . . . . . . 18 . . . . . . . . . . Melee Attacks 2 | . . . . . . . . . . . . 1 1 . . . . . . . . . . . . . . . . Impact 2 | . . . . . . . . . . . . 1 1 . . . . . . . . . . . . . . . . Slashing . | . . . . . . . . . . . . . . . . . . . . . . . . . . . . . . Piercing . | . . . . . . . . . . . . . . . . . . . . . . . . . . . . . . Sneak Attacks . | . . . . . . . . . . . . . . . . . . . . . . . . . . . . . . Combat Hostiles . | . . . . . . . . . . . . . . . . . . . . . . . . . . . . . . Follow-up Attacks . | . . . . . . . . . . . . . . . . . . . . . . . . . . . . . . Damage Inflicted 38255 | 137 703 199 . 267 1218 730 561 . . 408 2619 631 1000 . 713 8413 104 407 5169 124 2208 246 . . 842 3277 4201 3480 598 Guns 30020 | 137 539 199 . 79 846 704 561 . . 408 2616 631 967 . 83 7978 104 407 462 124 2149 246 . . 808 3219 3691 3062 . Cannons 2947 | . . . . . . . . . . . . . . . . . . . 2402 . . . . . 34 . 318 . 193 Explosions 5030 | . 164 . . 188 372 . . . . . . . 33 . 630 404 . . 2289 . . . . . . . 186 381 383 Melee . | . . . . . . . . . . . . . . . . . . . . . . . . . . . . . . Ramming 258 | . . . . . . 26 . . . . 3 . . . . 31 . . 16 . 59 . . . . 58 6 37 22 Kinetic 29012 | 75 401 199 . 46 464 704 561 . . 408 2616 631 868 . 83 7978 104 407 462 124 2149 246 . . 842 3219 3984 2441 . Thermal 1782 | 62 138 . . 33 277 . . . . . . . . . . 361 . . . . . . . . . . . 335 576 Explosive 3595 | . 164 . . 188 248 . . . . . . . 33 . 630 43 . . 2289 . . . . . . . . . . Electromagnetic 1206 | . . . . . 229 . . . . . . . 99 . . . . . . . . . . . . . 211 667 . Impact . | . . . . . . . . . . . . . . . . . . . . . . . . . . . . . . Slashing . | . . . . . . . . . . . . . . . . . . . . . . . . . . . . . . Piercing . | . . . . . . . . . . . . . . . . . . . . . . . . . . . . . . Entropic 2402 | . . . . . . . . . . . . . . . . . . . 2402 . . . . . . . . . . Highest Corruption 34 | . . . . . 6 1 . . . . 1 1 . . . 23 23 23 23 2 6 7 7 7 9 5 14 34 . Average Corruption 10 | . . . . . 5 1 . . . . 1 1 . . . 11 23 23 4 2 5 7 7 7 8 3 10 25 . Corruption Purged 3 | . . . . . . 1 . . . . 1 1 . . . . . . . . . . . . . . . . . Corruption Blocked 4 | . . . . . . . . . . . . . . . . . . . . . . . . . . . . 4 . Effects 274 | . . . . . 8 . . . . . 2 1 . . . 62 21 17 7 6 15 14 15 6 13 8 52 27 . Message Errors 50 | . . . . . 2 . . . . . . 1 . . . 10 3 4 . . . 6 4 1 . 2 13 4 . Matter Fused 68 | . . . . . 3 . . . . . . . . . . 13 7 5 5 1 2 5 3 . 2 1 16 5 . Heat Flow Errors 30 | . . . . . 1 . . . . . . . . . . 7 1 2 . 2 1 . 3 1 2 1 5 4 . Energy Discharges 24 | . . . . . 1 . . . . . . . . . . 7 . . 1 2 3 . 1 . 4 . 4 1 . Parts Rejected 3 | . . . . . . . . . . . . . . . . . . . . . . . . . . . 2 1 . Data Loss (minor) 34 | . . . . . 1 . . . . . . . . . . 5 3 3 1 . 3 2 1 4 4 . 6 1 . Data Loss (major) 12 | . . . . . . . . . . . 2 . . . . 1 2 . . 1 1 1 1 . . 1 2 . . Misfires 11 | . . . . . . . . . . . . . . . . 3 2 1 . . 2 . 2 . . . 1 . . Alerts 8 | . . . . . . . . . . . . . . . . 1 1 1 . . 1 . . . . 1 . 3 . Misdirections 6 | . . . . . . . . . . . . . . . . . . . . . . . . . . . 2 4 . Weapon Failures 28 | . . . . . . . . . . . . . . . . 15 2 1 . . 2 . . . 1 2 1 4 . Overload Shots . | . . . . . . . . . . . . . . . . . . . . . . . . . . . . . . Overflow Damage 240 | . . . . 2 26 . . . . . . . . . 21 8 . . 41 . 7 . . . . . . 36 99 Projectiles 30 | . . . . . . . . . . . . . . . . . . . 30 . . . . . . . . . . Explosions 203 | . . . . 2 26 . . . . . . . . . 21 8 . . 11 . . . . . . . . 36 99 Melee 7 | . . . . . . . . . . . . . . . . . . . . . 7 . . . . . . . . Knockbacks 6 | . . . . . . . . . . . . . . . . . . . . . . . . . . 2 4 . . Impact 2 | . . . . . . . . . . . . . . . . . . . . . . . . . . 2 . . . Kinetic 4 | . . . . . . . . . . . . . . . . . . . . . . . . . . . 4 . . Secondary . | . . . . . . . . . . . . . . . . . . . . . . . . . . . . . . Self-Inflicted Damage 440 | . . . . . . . . . . . . . . . . 87 . . 188 . . . . . . . . 100 65 Shots 12 | . . . . . . . . . . . . . . . . 1 . . 9 . . . . . . . . 1 1 Rammed 20 | . . . . . . 5 . . . . 1 . . . . 2 . . 3 . . . . . . 3 . 3 3 Targets Rammed 30 | . . . . . . 5 . . . . 1 . . . . 4 . . 3 . 2 . . . . 4 1 3 7 Kicked 4 | . . . . . . . . . . . . . . . . . . . . . . . . . . . . . 4 Crushed 6 | . . . . . . . . . . . . . . . . 2 . . . . 2 . . . . 1 1 . . Highest Temperature 457 | 45 87 20 . 18 270 132 95 165 . 132 210 45 233 . 86 304 191 248 276 164 303 160 219 217 222 387 309 457 136 Average Temperature 73 | 19 32 9 . 8 75 42 42 77 . 50 46 20 92 . 37 66 42 54 100 52 92 67 79 130 97 92 78 143 77 Received Heat Transfer 2005 | . 177 . . . 90 6 . . . . 75 96 . . 90 564 . 18 246 . 121 20 12 . 67 78 9 228 108 Effects 6 | . . . . . . . . . . . . . . . . . . . 3 . . . . . . 1 . 2 . Shutdowns 3 | . . . . . . . . . . . . . . . . . . . . . . . . . . 1 . 2 . Interference 3 | . . . . . . . . . . . . . . . . . . . 3 . . . . . . . . . . Siege Activations 21 | . . . . . . . . . . . . . . . . . . . . . 2 1 . . 2 4 7 4 1 Total Turns 403 | . . . . . . . . . . . . . . . . . . . . . 49 10 . . 24 92 158 69 1 Longest Duration 71 | . . . . . . . . . . . . . . . . . . . . . 25 10 . . 20 45 71 27 1 Robots Corrupted 4 | . . . . . . . . . . . . . 1 . . . . . . . . . . . . . . 3 . Combat Hostiles 4 | . . . . . . . . . . . . . 1 . . . . . . . . . . . . . . 3 . Parts Fried 13 | . . . . . 1 . . . . . . . 3 . . . . . . . 1 . . . . . 1 7 . Impact Corruptions 1 | . . . . . . . . . . . . . . . . . . . . . 1 . . . . . . . . Robots Melted . | . . . . . . . . . . . . . . . . . . . . . . . . . . . . . . Combat Hostiles . | . . . . . . . . . . . . . . . . . . . . . . . . . . . . . . Parts Melted 3 | . . . . . 1 . . . . 1 . . . . . . . . . . . . . . . . . . 1 Heat Transferred 2499 | 333 481 . . 74 531 . . . . . . . . . . 350 . . . . . . . . . . . 200 530 Parts Sabotaged 3 | . . . . . . . . . . . . . . . . . . . . . . . . . . . . 3 . Parts Stolen . | . . . . . . . . . . . . . . . . . . . . . . . . . . . . . . Parts Stripped . | . . . . . . . . . . . . . . . . . . . . . . . . . . . . . . Power Chain Reactions 2 | . . . . . 1 . . . . . . . . . . . . . . . . . . . . . . 1 . Missiles Intercepted . | . . . . . . . . . . . . . . . . . . . . . . . . . . . . . . Alert | -11 -10 -10 -10 -9 -8 -7 -7 -7 -7 -6 -6 -6 -6 -6 -5 -5 -5 -5 -5 -4 -4 -4 -4 -4 -3 -3 -3 -2 -1 ------- Run | Scr Mat Min Exi Min Mat Fac Low Low Zio Pro Fac Low Low Dat Pro Fac Upp Upp War Pro Fac Upp Upp Zhi Pro Res Tes Res Acc Peak Influence 1435 | 25 440 223 . 57 189 167 . . . . 321 . . . . 1435 . . . . 189 . . . . 533 218 255 552 Initial 218 | . 16 98 . . 8 22 . . . . 99 . . . . 31 . . . . . . . . . . 218 45 79 Average 287 | 8 252 148 . 29 66 63 . . . . 189 . . . . 858 . . . . 49 . . . . 156 76 86 242 Maximum Alert Level 4 | . 2 1 . . . . . . . . 1 . . . . 4 . . . . . . . . . 2 1 1 2 Low Security (%) 62 | 100 26 72 . 100 100 100 . . . . 54 . . . . 5 . . . . 100 . . . . 58 92 93 60 Level 1 14 | . 55 27 . . . . . . . . 45 . . . . 9 . . . . . . . . . 29 7 6 19 Level 2 8 | . 17 . . . . . . . . . . . . . . 25 . . . . . . . . . 11 . . 20 Level 3 7 | . . . . . . . . . . . . . . . . 31 . . . . . . . . . . . . . Level 4 6 | . . . . . . . . . . . . . . . . 28 . . . . . . . . . . . . . Level 5 . | . . . . . . . . . . . . . . . . . . . . . . . . . . . . . . High Security . | . . . . . . . . . . . . . . . . . . . . . . . . . . . . . . Max Security . | . . . . . . . . . . . . . . . . . . . . . . . . . . . . . . Squads Dispatched 45 | . 4 . . . 2 3 . . . . 4 . . . . 19 . . . . 4 . . . . 3 3 1 2 Investigation 11 | . 2 . . . . 2 . . . . 1 . . . . 3 . . . . 1 . . . . . . 1 1 Extermination 10 | . . . . . . 1 . . . . . . . . . 2 . . . . 2 . . . . 2 3 . . Reinforcement 18 | . 2 . . . 2 . . . . . 3 . . . . 9 . . . . 1 . . . . . . . 1 Assault 6 | . . . . . . . . . . . . . . . . 5 . . . . . . . . . 1 . . . Garrison . | . . . . . . . . . . . . . . . . . . . . . . . . . . . . . . Intercept . | . . . . . . . . . . . . . . . . . . . . . . . . . . . . . . Searches Triggered . | . . . . . . . . . . . . . . . . . . . . . . . . . . . . . . Data Miner Redirects 8 | . . . . . . . . . . . . . . . . 5 . . . . 1 . . . . 1 . . 1 Construction Impeded 1 | . . . . . . . . . . . . . . . . 1 . . . . . . . . . . . . . Haulers Reinforced 4 | . . . . . . . . . . . 1 . . . . 3 . . . . . . . . . . . . . Active Scanning Responses 1 | . . . . . . . . . . . . . . . . 1 . . . . . . . . . . . . . Cargo Convoy Interrupts 2 | . . . . . . . . . . . 1 . . . . 1 . . . . . . . . . . . . . Stealth | -11 -10 -10 -10 -9 -8 -7 -7 -7 -7 -6 -6 -6 -6 -6 -5 -5 -5 -5 -5 -4 -4 -4 -4 -4 -3 -3 -3 -2 -1 --------- Run | Scr Mat Min Exi Min Mat Fac Low Low Zio Pro Fac Low Low Dat Pro Fac Upp Upp War Pro Fac Upp Upp Zhi Pro Res Tes Res Acc Distress Signals 17 | . 2 . . . 1 . . . . . 1 . 1 . . 2 . . . . . . . . . 1 1 6 2 Communications Jammed 104 | . . . . . . . . . . . 58 . . . . 3 . . . . 1 . . . . 14 25 3 . Distress Signals 101 | . . . . . . . . . . . 58 . . . . 3 . . . . 1 . . . . 11 25 3 . Times Spotted 402 | . 14 4 . 4 19 6 7 . . 6 20 4 9 . 10 86 . 1 67 . 15 2 1 . 7 23 21 32 44 Peak Tracking Total 22 | . 7 3 . 2 6 2 4 . . 4 10 3 4 . 5 11 . 1 13 . 3 1 1 . 5 5 3 12 22 Tactical Retreats 17 | . . 1 . . . . . . . . 1 . . . . 4 . . . . . . . . . 2 2 3 4 Traps | -11 -10 -10 -10 -9 -8 -7 -7 -7 -7 -6 -6 -6 -6 -6 -5 -5 -5 -5 -5 -4 -4 -4 -4 -4 -3 -3 -3 -2 -1 ------- Run | Scr Mat Min Exi Min Mat Fac Low Low Zio Pro Fac Low Low Dat Pro Fac Upp Upp War Pro Fac Upp Upp Zhi Pro Res Tes Res Acc Traps Triggered 4 | . . . . . . . . . . . . . . . . 1 . . . . 2 . . . . . 1 . . Indirectly . | . . . . . . . . . . . . . . . . . . . . . . . . . . . . . . Trap Hack Attempts . | . . . . . . . . . . . . . . . . . . . . . . . . . . . . . . Triggered . | . . . . . . . . . . . . . . . . . . . . . . . . . . . . . . Disarmed . | . . . . . . . . . . . . . . . . . . . . . . . . . . . . . . Reprogrammed . | . . . . . . . . . . . . . . . . . . . . . . . . . . . . . . Reused . | . . . . . . . . . . . . . . . . . . . . . . . . . . . . . . Traps Extracted . | . . . . . . . . . . . . . . . . . . . . . . . . . . . . . . Installed 1 | . . . . . 1 . . . . . . . . . . . . . . . . . . . . . . . . Triggered 14 | . . . . . . . . . . . . . . . . . . . 13 . . . . . 1 . . . . Most Traps Carried 2 | . . 2 2 1 1 . . . . . . . . . . . . . . . . . . . . . . . . Machines | -11 -10 -10 -10 -9 -8 -7 -7 -7 -7 -6 -6 -6 -6 -6 -5 -5 -5 -5 -5 -4 -4 -4 -4 -4 -3 -3 -3 -2 -1 ---------- Run | Scr Mat Min Exi Min Mat Fac Low Low Zio Pro Fac Low Low Dat Pro Fac Upp Upp War Pro Fac Upp Upp Zhi Pro Res Tes Res Acc Machines Disabled 31 | . . . . 1 . 1 . . . . 1 . 1 . . 19 . . 1 . . . . . . 2 5 . . Max in Single Turn 7 | . . . . 1 . 1 . . . . 1 . 1 . . 7 . . 1 . . . . . . 1 1 . . Garrison Access 4 | . . . . . . . . . . . 1 . . . . 2 . . . . . . . . . . . 1 . Machines Sabotaged . | . . . . . . . . . . . . . . . . . . . . . . . . . . . . . . Overloaded Fab Kills 3 | . . . . . . . . . . . . . . . . . . . . . . . . . . . . . 3 Hacking | -11 -10 -10 -10 -9 -8 -7 -7 -7 -7 -6 -6 -6 -6 -6 -5 -5 -5 -5 -5 -4 -4 -4 -4 -4 -3 -3 -3 -2 -1 --------- Run | Scr Mat Min Exi Min Mat Fac Low Low Zio Pro Fac Low Low Dat Pro Fac Upp Upp War Pro Fac Upp Upp Zhi Pro Res Tes Res Acc Machines Accessed 56 | . 6 1 . . 5 4 . 1 . . 3 1 1 4 . 8 . . 5 1 4 . . 4 . . 6 1 1 Terminals 31 | . 5 1 . . 5 2 . . . . 2 1 . . . 4 . . . 1 3 . . . . . 6 1 . Fabricators 2 | . . . . . . 1 . . . . . . . . . . . . . . . . . . . . . . 1 Repair Stations . | . . . . . . . . . . . . . . . . . . . . . . . . . . . . . . Recycling Units 2 | . 1 . . . . 1 . . . . . . . . . . . . . . . . . . . . . . . Scanalyzers 1 | . . . . . . . . . . . . . . . . 1 . . . . . . . . . . . . . Garrison Access 5 | . . . . . . . . . . . 1 . . . . 3 . . . . 1 . . . . . . . . Total Hacks 171 | . 16 9 . . 24 11 . 1 . . 8 1 1 27 . 15 . . 17 1 6 . . 17 . . 13 2 2 Successful 116 | . 11 4 . . 18 4 . 1 . . 4 1 1 27 . 5 . . 17 1 1 . . 17 . . 3 . 1 Failed 53 | . 4 5 . . 5 7 . . . . 4 . . . . 10 . . . . 5 . . . . . 10 2 1 Catastrophic 8 | . . . . . . 1 . . . . 1 . . . . . . . . . 2 . . . . . 3 1 . Database Lockouts 2 | . 1 . . . 1 . . . . . . . . . . . . . . . . . . . . . . . . Manual 62 | . 10 9 1 . 20 1 . . . . 3 . . . . 6 . . 1 . 2 . . . . . 7 . 2 Terminals 88 | . 15 9 . . 24 3 . . . . 5 1 . . . 10 . . . 1 5 . . . . . 13 2 . Fabricators 5 | . . . . . . 3 . . . . . . . . . . . . . . . . . . . . . . 2 Repair Stations . | . . . . . . . . . . . . . . . . . . . . . . . . . . . . . . Recycling Units 6 | . 1 . . . . 5 . . . . . . . . . . . . . . . . . . . . . . . Scanalyzers 1 | . . . . . . . . . . . . . . . . 1 . . . . . . . . . . . . . Garrison Access 8 | . . . . . . . . . . . 3 . . . . 4 . . . . 1 . . . . . . . . Terminal Hacks 90 | . 7 4 . . 9 . . 1 . . 2 1 1 27 . 1 . . 17 1 . . . 17 . . 2 . . Record 29 | . . . . . . . . . . . . 1 . 11 . . . . 11 1 . . . 5 . . . . . Part Schematic 16 | . . 3 . . . . . . . . . . . 9 . . . . . . . . . 4 . . . . . Robot Schematic 4 | . . . . . . . . . . . . . . 4 . . . . . . . . . . . . . . . Robot Analysis 11 | . 5 1 . . 1 . . . . . . . . . . . . . . . . . . 4 . . . . . Prototype ID Bank 13 | . . . . . 1 . . . . . . . . 3 . . . . 5 . . . . 4 . . . . . Open Door 3 | . . . . . . . . 1 . . . . 1 . . . . . 1 . . . . . . . . . . Terminal Index 1 | . 1 . . . . . . . . . . . . . . . . . . . . . . . . . . . . Alert Level 1 | . . . . . 1 . . . . . . . . . . . . . . . . . . . . . . . . Unreport Threat 4 | . . . . . 2 . . . . . . . . . . 1 . . . . . . . . . . 1 . . Locate Traps 6 | . 1 . . . 3 . . . . . 1 . . . . . . . . . . . . . . . 1 . . Registered Components 1 | . . . . . . . . . . . 1 . . . . . . . . . . . . . . . . . . Zone Layout 1 | . . . . . 1 . . . . . . . . . . . . . . . . . . . . . . . . Fabricator Hacks 1 | . . . . . . 1 . . . . . . . . . . . . . . . . . . . . . . . Load Schematic 1 | . . . . . . 1 . . . . . . . . . . . . . . . . . . . . . . . Repair Station Hacks . | . . . . . . . . . . . . . . . . . . . . . . . . . . . . . . Recycling Unit Hacks 3 | . . . . . . 3 . . . . . . . . . . . . . . . . . . . . . . . Process 1 | . . . . . . 1 . . . . . . . . . . . . . . . . . . . . . . . Retrieve Matter 2 | . . . . . . 2 . . . . . . . . . . . . . . . . . . . . . . . Scanalyzer 1 | . . . . . . . . . . . . . . . . 1 . . . . . . . . . . . . . Insert Component 1 | . . . . . . . . . . . . . . . . 1 . . . . . . . . . . . . . Garrison Access Hacks 3 | . . . . . . . . . . . 1 . . . . 2 . . . . . . . . . . . . . Seal Access 3 | . . . . . . . . . . . 1 . . . . 2 . . . . . . . . . . . . . Unauthorized Hacks 18 | . 4 . . . 9 . . . . . 1 . . . . 1 . . . . 1 . . . . . 1 . 1 Terminals 16 | . 3 . . . 9 . . . . . 1 . . . . 1 . . . . 1 . . . . . 1 . . Track 6 | . 1 . . . 4 . . . . . . . . . . . . . . . . . . . . . 1 . . Assimilate 1 | . . . . . . . . . . . . . . . . 1 . . . . . . . . . . . . . Botnet 6 | . 2 . . . 2 . . . . . 1 . . . . . . . . . 1 . . . . . . . . Disrupt 2 | . . . . . 2 . . . . . . . . . . . . . . . . . . . . . . . . Operators 1 | . . . . . 1 . . . . . . . . . . . . . . . . . . . . . . . . Fabricators 1 | . . . . . . . . . . . . . . . . . . . . . . . . . . . . . 1 Overload 1 | . . . . . . . . . . . . . . . . . . . . . . . . . . . . . 1 Repair Stations . | . . . . . . . . . . . . . . . . . . . . . . . . . . . . . . Recycling Units 1 | . 1 . . . . . . . . . . . . . . . . . . . . . . . . . . . . Tunnel 1 | . 1 . . . . . . . . . . . . . . . . . . . . . . . . . . . . Scanalyzers . | . . . . . . . . . . . . . . . . . . . . . . . . . . . . . . Garrison Access . | . . . . . . . . . . . . . . . . . . . . . . . . . . . . . . Data Cores Recovered 1 | . . . . . 1 . . . . . . . . . . . . . . . . . . . . . . . . Used 1 | . . . . . 1 . . . . . . . . . . . . . . . . . . . . . . . . Hacking Detections 36 | . 5 1 . . 4 4 . . . . 3 1 . . . 6 . . . . 4 . . . . . 6 1 1 Full Trace Events 9 | . 1 1 . . . 2 . . . . 1 . . . . 2 . . . . 1 . . . . . . 1 . Feedback Events 2 | . . . . . . 1 . . . . 1 . . . . . . . . . . . . . . . . . . Corruption 2 | . . . . . . 1 . . . . 1 . . . . . . . . . . . . . . . . . . Feedback Blocked . | . . . . . . . . . . . . . . . . . . . . . . . . . . . . . . Robot Schematics Acquired 7 | . . . . . . . . . 3 . . . . 4 . . . . . . . . . . . . . . . Robots Built . | . . . . . . . . . . . . . . . . . . . . . . . . . . . . . . Authchips . | . . . . . . . . . . . . . . . . . . . . . . . . . . . . . . Time . | . . . . . . . . . . . . . . . . . . . . . . . . . . . . . . Total Robot Build Rating . | . . . . . . . . . . . . . . . . . . . . . . . . . . . . . . Part Schematics Acquired 31 | . . 3 . . . . . . 15 . . . . 9 . . . . . . . . . 4 . . . . . Parts Built . | . . . . . . . . . . . . . . . . . . . . . . . . . . . . . . Authchips . | . . . . . . . . . . . . . . . . . . . . . . . . . . . . . . Time . | . . . . . . . . . . . . . . . . . . . . . . . . . . . . . . Total Part Build Rating . | . . . . . . . . . . . . . . . . . . . . . . . . . . . . . . Parts Repaired . | . . . . . . . . . . . . . . . . . . . . . . . . . . . . . . Time . | . . . . . . . . . . . . . . . . . . . . . . . . . . . . . . Parts Recycled . | . . . . . . . . . . . . . . . . . . . . . . . . . . . . . . Recycled Matter 244 | . . . . . . 244 . . . . . . . . . . . . . . . . . . . . . . . Retrieved Matter 244 | . . . . . . 244 . . . . . . . . . . . . . . . . . . . . . . . Retrieved Components . | . . . . . . . . . . . . . . . . . . . . . . . . . . . . . . Parts Scanalyzed . | . . . . . . . . . . . . . . . . . . . . . . . . . . . . . . Part Schematics Acquired . | . . . . . . . . . . . . . . . . . . . . . . . . . . . . . . Parts Damaged . | . . . . . . . . . . . . . . . . . . . . . . . . . . . . . . Bothacking | -11 -10 -10 -10 -9 -8 -7 -7 -7 -7 -6 -6 -6 -6 -6 -5 -5 -5 -5 -5 -4 -4 -4 -4 -4 -3 -3 -3 -2 -1 ------------ Run | Scr Mat Min Exi Min Mat Fac Low Low Zio Pro Fac Low Low Dat Pro Fac Upp Upp War Pro Fac Upp Upp Zhi Pro Res Tes Res Acc Used RIF Installer . | . . . . . . . . . . . . . . . . . . . . . . . . . . . . . . Robots Hacked 1 | . . . . . . . . . . . . . . . . . . . . . . . . . . . . 1 . Non-combat 1 | . . . . . . . . . . . . . . . . . . . . . . . . . . . . 1 . Combat . | . . . . . . . . . . . . . . . . . . . . . . . . . . . . . . Robot Hacks Applied 1 | . . . . . . . . . . . . . . . . . . . . . . . . . . . . 1 . parse_system 1 | . . . . . . . . . . . . . . . . . . . . . . . . . . . . 1 . Relay Couplers Released 1 | . . . . . . . . . . . . . . . . . . . . . . . . . . . . 1 . Machine Destruction 1 | . . . . . . . . . . . . . . . . . . . . . . . . . . . . 1 . Fabnet Peak Effective % . | . . . . . . . . . . . . . . . . . . . . . . . . . . . . . . Robots Rewired 7 | . . . 3 . . . . . . . . . 3 . . . . . . . . . . . . . . . 1 Allies Hacked . | . . . . . . . . . . . . . . . . . . . . . . . . . . . . . . Hacks Repelled . | . . . . . . . . . . . . . . . . . . . . . . . . . . . . . . Allies | -11 -10 -10 -10 -9 -8 -7 -7 -7 -7 -6 -6 -6 -6 -6 -5 -5 -5 -5 -5 -4 -4 -4 -4 -4 -3 -3 -3 -2 -1 -------- Run | Scr Mat Min Exi Min Mat Fac Low Low Zio Pro Fac Low Low Dat Pro Fac Upp Upp War Pro Fac Upp Upp Zhi Pro Res Tes Res Acc Total Allies 21 | . . . 3 2 . . . . 7 . . . 3 . 1 1 . . . . . . . . . . . . 4 Largest Group 7 | . . . 3 3 3 . . . 7 7 6 . 3 1 2 2 . . . . . . . . . . . . 3 Highest-Rated Group 374 | . . . 37 60 60 . . . 166 166 152 . 75 25 121 118 . . . . . . . . . . . . 374 Highest-Rated Ally 131 | . . . 21 31 31 . . . 31 31 31 . 25 25 96 96 . . . . . . . . . . . . 131 Total Orders 2 | . . . . . . . . . 2 . . . . . . . . . . . . . . . . . . . . STAY 1 | . . . . . . . . . 1 . . . . . . . . . . . . . . . . . . . . EXPLORE 1 | . . . . . . . . . 1 . . . . . . . . . . . . . . . . . . . . Ally Attacks 121 | . . . . 10 25 . . . . 29 7 . 13 . 9 16 . . . . . . . . . . . . 12 Total Damage 2537 | . . . . 135 318 . . . . 306 157 . 380 . 597 467 . . . . . . . . . . . . 177 Kills 24 | . . . . 3 4 . . . . 2 2 . 2 . 3 6 . . . . . . . . . . . . 2 Allies Corrupted . | . . . . . . . . . . . . . . . . . . . . . . . . . . . . . . Allies Melted . | . . . . . . . . . . . . . . . . . . . . . . . . . . . . . . Intel | -11 -10 -10 -10 -9 -8 -7 -7 -7 -7 -6 -6 -6 -6 -6 -5 -5 -5 -5 -5 -4 -4 -4 -4 -4 -3 -3 -3 -2 -1 ------- Run | Scr Mat Min Exi Min Mat Fac Low Low Zio Pro Fac Low Low Dat Pro Fac Upp Upp War Pro Fac Upp Upp Zhi Pro Res Tes Res Acc Robot Analysis Total 11 | . 5 1 . . 1 . . . . . . . . . . . . . . . . . . 4 . . . . . Derelict Logs Recovered 13 | . . 2 . 2 . . 2 1 1 . . 1 1 . 2 . . . . . . . 1 . . . . . . Drone Launches 1 | . . . . . . . . . 1 . . . . . . . . . . . . . . . . . . . . Drone Recoveries . | . . . . . . . . . . . . . . . . . . . . . . . . . . . . . . Exploration | -11 -10 -10 -10 -9 -8 -7 -7 -7 -7 -6 -6 -6 -6 -6 -5 -5 -5 -5 -5 -4 -4 -4 -4 -4 -3 -3 -3 -2 -1 ------------- Run | Scr Mat Min Exi Min Mat Fac Low Low Zio Pro Fac Low Low Dat Pro Fac Upp Upp War Pro Fac Upp Upp Zhi Pro Res Tes Res Acc Turns Passed 18406 | 82 442 408 447 118 669 658 436 391 1186 452 914 481 591 124 471 2281 407 415 1326 368 948 392 529 240 408 838 1431 724 229 Spaces Moved 10227 | 56 290 363 403 83 346 364 251 237 720 263 454 264 317 77 260 1006 236 241 662 208 476 229 311 139 219 379 627 395 351 Core 518 | 8 . . . . . . . . . . . . . . . 48 . . . . . . . . . . . 145 317 Treads 8187 | . . . . . 155 364 251 237 720 263 454 264 317 77 260 842 236 241 662 208 476 229 311 139 219 379 627 250 6 Legs 10 | . . . . . . . . . . . . . . . . . . . . . . . . . . . . . 10 Wheels 1494 | 48 290 363 403 83 191 . . . . . . . . . . 116 . . . . . . . . . . . . . Hover 18 | . . . . . . . . . . . . . . . . . . . . . . . . . . . . . 18 Flight . | . . . . . . . . . . . . . . . . . . . . . . . . . . . . . . Fastest Speed 50 | 50 80 95 95 105 105 163 163 163 163 163 162 160 160 162 160 50 160 160 160 160 160 160 160 160 160 160 162 50 50 Average Speed 147 | 75 89 95 99 105 133 163 163 163 163 163 164 161 161 162 160 152 160 160 166 162 160 160 160 160 160 160 167 131 54 Slowest Speed 1350 | 80 95 95 105 105 243 163 163 163 163 163 165 162 162 162 162 320 160 160 240 240 160 160 160 160 160 162 170 1350 145 Overloaded Moves . | . . . . . . . . . . . . . . . . . . . . . . . . . . . . . . Propulsion Burnouts . | . . . . . . . . . . . . . . . . . . . . . . . . . . . . . . Robots Hopped . | . . . . . . . . . . . . . . . . . . . . . . . . . . . . . . Cave-ins Triggered . | . . . . . . . . . . . . . . . . . . . . . . . . . . . . . . Exploration Rate (%) 47 | 3 58 69 89 34 39 15 50 48 87 59 17 51 48 68 51 38 51 57 92 43 15 46 58 60 47 15 78 13 16 Regions Visited 29 Branch Regions 20 Pre-discovered Areas 7 | . 1 1 . . . . . . . . . 1 . 1 . . . . . . . . . 3 . . . . . Known Exits Taken 25 | . . . . 1 1 1 1 1 1 1 1 1 1 1 1 1 1 1 1 1 1 1 1 1 1 1 1 1 . Unknown Exits Taken 4 | 1 1 1 1 . . . . . . . . . . . . . . . . . . . . . . . . . . Scrap Searched 24 | . . 1 . . . . 2 2 3 . . 2 3 . 4 . 1 1 . 1 . . 3 . 1 . . . . Spaces Dug 117 | . 3 . . . 13 1 . 2 . 1 8 1 1 . 5 19 5 . . 5 8 5 5 . . 11 22 2 . Terrain Destroyed 610 | . 31 . . 23 36 2 2 3 . 7 20 1 16 . 29 163 8 1 72 6 67 10 17 . 7 20 42 23 4 Melee 2 | . . . . . . . . . . . . 1 1 . . . . . . . . . . . . . . . . Projectile 290 | . 3 . . . 5 2 2 3 . 7 20 . 2 . 5 30 8 1 17 6 67 10 17 . 7 19 42 17 . AOE 315 | . 28 . . 23 31 . . . . . . . 13 . 24 131 . . 55 . . . . . . . . 6 4 Terrain Rammed . | . . . . . . . . . . . . . . . . . . . . . . . . . . . . . . Walls Destroyed . | . . . . . . . . . . . . . . . . . . . . . . . . . . . . . . Machines Disabled . | . . . . . . . . . . . . . . . . . . . . . . . . . . . . . . Actions | -11 -10 -10 -10 -9 -8 -7 -7 -7 -7 -6 -6 -6 -6 -6 -5 -5 -5 -5 -5 -4 -4 -4 -4 -4 -3 -3 -3 -2 -1 --------- Run | Scr Mat Min Exi Min Mat Fac Low Low Zio Pro Fac Low Low Dat Pro Fac Upp Upp War Pro Fac Upp Upp Zhi Pro Res Tes Res Acc Total 12353 | 78 384 396 452 101 473 428 276 242 735 283 603 299 379 76 295 1434 250 253 820 233 593 244 332 159 253 519 870 506 387 Wait 208 | . 10 . 3 3 4 1 . . 1 . 3 . 5 . 1 21 . 2 56 . 7 2 11 . 6 23 37 4 8 Move 10199 | 55 289 362 402 82 345 363 250 236 719 262 453 263 316 76 259 1005 235 240 662 207 475 228 310 138 218 378 626 394 351 Hop . | . . . . . . . . . . . . . . . . . . . . . . . . . . . . . . Pick Up 191 | 7 13 5 3 1 15 7 4 . 6 . 15 2 2 . 4 43 . 1 7 . 11 2 2 4 . 7 16 11 3 Fast Attach 149 | 7 . . 1 1 11 5 1 . 1 . 8 2 4 . . 37 1 . 6 . 7 . . 7 . 9 20 16 5 Attach 141 | 1 4 1 1 . 10 2 1 . 1 . 10 1 1 . 1 32 . . 8 10 17 1 . . 5 4 17 7 6 Detach 90 | 1 . . . . 5 6 . . 1 . 2 1 1 . . 13 . . 11 9 11 . . . 1 6 14 6 2 Swap 396 | . 25 7 . 3 26 12 5 . 1 6 27 14 13 . 18 76 3 2 33 . 26 5 . . 13 27 37 17 . Drop 184 | . 2 5 7 3 19 10 1 . 5 . 13 4 6 . . 36 1 1 7 . 4 1 . 10 . 11 24 13 1 Fire 713 | 7 41 16 . 8 37 17 14 6 . 15 71 11 19 . 12 167 10 7 28 7 33 5 8 . 10 50 78 35 1 Melee 2 | . . . . . . . . . . . . 1 1 . . . . . . . . . . . . . . . . Ram 3 | . . . . . . . . . . . . . . . . . . . . . . . . . . . . . 3 Kick 4 | . . . . . . . . . . . . . . . . . . . . . . . . . . . . . 4 Crush 22 | . . . . . . 5 . . . . 1 . . . . 4 . . 2 . 2 . . . . 4 1 3 . Escape Stasis . | . . . . . . . . . . . . . . . . . . . . . . . . . . . . . . Rewire 50 | . . . 35 . . . . . . . . . 11 . . . . . . . . . 1 . . . . . 3 Trap 1 | . . . . . 1 . . . . . . . . . . . . . . . . . . . . . . . . Miscellaneous . | . . . . . . . . . . . . . . . . . . . . . . . . . . . . . . Route ------- -11/Scrapyard -10/Materials (discovered 3 exits: [*Mat x2] / *Min) -10/Mines (discovered 3 exits: [*Mat x2] / *Exi) -10/Exiles (discovered 2 exits: [*Min x2]) -9/Mines -8/Materials (discovered 3 exits: *Fac x3) -7/Factory -7/Lower Caves -7/Lower Caves (discovered 2 exits: *Fac / *Zio) -7/Zion -6/Proximity Caves -6/Factory (discovered 3 exits: Fac / *Low x2) -6/Lower Caves -6/Lower Caves -6/Data Miner -5/Proximity Caves -5/Factory (discovered 3 exits: *Upp / Ext x2) -5/Upper Caves -5/Upper Caves -5/Warlord -4/Proximity Caves -4/Factory (discovered 2 exits: *Res / *Upp) -4/Upper Caves -4/Upper Caves (discovered 2 exits: *Res / *Zhi) -4/Zhirov -3/Proximity Caves -3/Research (discovered 3 exits: *Res x2 / *Tes) -3/Testing -2/Research -1/Access (discovered 2 exits: Sur / Com) History --------- Turn | Location | Event 9 | -11/Scrapyard | Discovered new exit (range 15) 83 | -11/Scrapyard | Entered Materials 156 | -10/Materials | Discovered new exit (range 14) 295 | -10/Materials | Lost 4 parts (1p1n1u1w) 331 | -10/Materials | Discovered new exit (range 16) 335 | -10/Materials | Build established: Mutant 486 | -10/Materials | Discovered new exit (range 16) 498 | -10/Materials | Central database locked down 525 | -10/Materials | Entered Mines 568 | -10/Mines | Discovered new exit (range 11) 602 | -10/Mines | Found a hidden stash of uninstalled traps 622 | -10/Mines | Learned 2 Materials zone layouts 627 | -10/Mines | Learned location of Storage (-7) 742 | -10/Mines | Learned 2 Materials zone layouts 770 | -10/Mines | Discovered new exit (range 5) 928 | -10/Mines | Deemed a non-threat by the Exiles lab entrance 929 | -10/Mines | Discovered new exit (range 5) 933 | -10/Mines | Entered Exiles 933 | -10/Exiles | Found Exiles lab destroyed 946 | -10/Exiles | Discovered new exit (range 15) 1027 | -10/Exiles | Opened EX-Vault 1034 | -10/Exiles | Found Prototype Ballistic Gun 1369 | -10/Exiles | Discovered new exit (range 10) 1380 | -10/Exiles | Entered Mines 1380 | -9/Mines | Accompanied by 3 allies 1381 | -9/Mines | Assembled infested the area 1386 | -9/Mines | Assisted by a Guerilla fighting off Assembled 1390 | -9/Mines | Learned 8 Materials zone layouts 1396 | -9/Mines | Found a damaged Exp. Sensor Array with a note attached 1398 | -9/Mines | Found Prototype Device 1398 | -9/Mines | Identified Exp. Sensor Array 1471 | -9/Mines | Identified exit to Materials 1498 | -9/Mines | Entered Materials 1498 | -8/Materials | Accompanied by 3 allies 1498 | -8/Materials | Evolved 4 slots: Propulsion x1, Utility x2, Weapon x1 1499 | -8/Materials | Identified exit to Factory 1503 | -8/Materials | Led the pair of lost Derelicts to an unsafe place 1629 | -8/Materials | Central database locked down 1840 | -8/Materials | Lost 6 parts (1p1n1u3w) 1840 | -8/Materials | Found Prototype Device 2083 | -8/Materials | Discovered exit to Factory (range 13) 2167 | -8/Materials | Entered Factory 2167 | -7/Factory | Evolved 2 slots: Utility x1, Weapon x1 2169 | -7/Factory | Identified XL Autogun Array 2352 | -7/Factory | Build established: Scavenger-Skirmisher 2400 | -7/Factory | Found Prototype Launcher 2400 | -7/Factory | Identified Rocket Array 2577 | -7/Factory | Discovered new exit (range 16) 2823 | -7/Factory | Identified exit to Lower Caves 2825 | -7/Factory | Entered Lower Caves 3112 | -7/Lower Caves | Encountered a Warlord checkpoint 3248 | -7/Lower Caves | Discovered new exit (range 8) 3252 | -7/Lower Caves | Learned Factory emergency access door positions 3260 | -7/Lower Caves | Identified exit to Lower Caves 3261 | -7/Lower Caves | Entered another Lower Caves area 3263 | -7/Lower Caves | Discovered new exit (range 12) 3279 | -7/Lower Caves | Identified exit to Factory 3478 | -7/Lower Caves | Learned location of 1 exit from Factory 3629 | -7/Lower Caves | Encountered a Warlord checkpoint 3634 | -7/Lower Caves | Discovered new exit (range 13) 3651 | -7/Lower Caves | Identified exit to Zion 3652 | -7/Lower Caves | Entered Zion 3757 | -7/Zion | Discovered new exit (range 13) 3930 | -7/Zion | Given the Hacking Drone Bay 3930 | -7/Zion | Found Prototype Device 3930 | -7/Zion | Identified Hacking Drone Bay 4239 | -7/Zion | Gained Derelict followers 4294 | -7/Zion | Loaded intel: 4 derelict terminal locations 4441 | -7/Zion | Gained Derelict followers 4479 | -7/Zion | Learned location of 1 exit from Factory 4836 | -7/Zion | Identified exit to Proximity Caves 4838 | -7/Zion | Entered Proximity Caves 4838 | -6/Proximity Caves | Accompanied by 7 allies 5267 | -6/Proximity Caves | Discovered exit to Factory (range 15) 5290 | -6/Proximity Caves | Entered Factory 5290 | -6/Factory | Accompanied by 6 allies 5290 | -6/Factory | Evolved 2 slots: Propulsion x1, Utility x1 5291 | -6/Factory | Identified exit to Factory 5291 | -6/Factory | Identified exit to Lower Caves 5993 | -6/Factory | Cargo convoy interrupted 6073 | -6/Factory | Lost 5 parts (3n2u) 6078 | -6/Factory | Discovered exit to Lower Caves (range 20) 6204 | -6/Factory | Entered Lower Caves 6515 | -6/Lower Caves | Attracted the attention of an 0b10 checkpoint 6645 | -6/Lower Caves | Encountered a Warlord checkpoint 6677 | -6/Lower Caves | Discovered new exit (range 6) 6684 | -6/Lower Caves | Identified exit to Lower Caves 6685 | -6/Lower Caves | Entered another Lower Caves area 6764 | -6/Lower Caves | Attacked by a delusional Derelict stockpiling Unaware 7059 | -6/Lower Caves | Discovered new exit (range 13) 7077 | -6/Lower Caves | Identified exit to Data Miner 7101 | -6/Lower Caves | Learned Factory garrison access intel 7276 | -6/Lower Caves | Entered Data Miner 7276 | -6/Data Miner | Accompanied by 1 ally 7276 | -6/Data Miner | Discovered new exit (range 7) 7283 | -6/Data Miner | Identified exit to Proximity Caves 7307 | -6/Data Miner | Met Data Miner 7335 | -6/Data Miner | Learned location of Section 7 (-2) 7335 | -6/Data Miner | Acquired the access code to Warlord's prototype stash 7362 | -6/Data Miner | Received God Mode back door access code from Data Miner 7400 | -6/Data Miner | Entered Proximity Caves 7400 | -5/Proximity Caves | Accompanied by 1 ally 7521 | -5/Proximity Caves | Learned Factory stockpile data 7526 | -5/Proximity Caves | Learned Factory emergency access door positions 7680 | -5/Proximity Caves | Escorted by Enhanced Grunt 7852 | -5/Proximity Caves | Discovered exit to Factory (range 12) 7871 | -5/Proximity Caves | Entered Factory 7871 | -5/Factory | Accompanied by 2 allies 7871 | -5/Factory | Evolved 2 slots: Utility x2 7872 | -5/Factory | Identified exit to Extension 7875 | -5/Factory | Loaded intel: 4 garrison access locations 8166 | -5/Factory | Identified Active Sensor Suite 8486 | -5/Factory | Incoming investigation squad redirected 8607 | -5/Factory | Cargo convoy interrupted 8625 | -5/Factory | Incoming assault squad redirected 8679 | -5/Factory | Destroyed 11 combat bots 8680 | -5/Factory | Lost 9 parts (4n2u3w) 8771 | -5/Factory | First assault squad dispatched 8799 | -5/Factory | Incoming assault squad redirected 8975 | -5/Factory | Lost 3 parts (2n1w) 9105 | -5/Factory | Discovered exit to Extension (range 20) 9248 | -5/Factory | Incoming assault squad redirected 9261 | -5/Factory | System corruption reached 10% 9334 | -5/Factory | Lost 14 parts (1p5n5u3w) 9432 | -5/Factory | Found Prototype Launcher 9432 | -5/Factory | Identified Scatter Rocket Array 9435 | -5/Factory | Found Scatter Rocket Array 9439 | -5/Factory | Found Faulty Scatter Rocket Array 9732 | -5/Factory | Incoming assault squad redirected 9798 | -5/Factory | Lost 3 parts (1p1u1w) 9804 | -5/Factory | Destroyed 8 combat bots 10087 | -5/Factory | Discovered new exit (range 21) 10150 | -5/Factory | Identified exit to Upper Caves 10152 | -5/Factory | Entered Upper Caves 10551 | -5/Upper Caves | Discovered new exit (range 5) 10556 | -5/Upper Caves | Identified exit to Upper Caves 10559 | -5/Upper Caves | Entered another Upper Caves area 10958 | -5/Upper Caves | Discovered new exit (range 11) 10973 | -5/Upper Caves | Identified exit to Warlord 10974 | -5/Upper Caves | Entered Warlord 11026 | -5/Warlord | System corruption cleaned by Quarantine Array 11507 | -5/Warlord | Learned Testing security intel 11507 | -5/Warlord | Learned Armory fabricator intel 11507 | -5/Warlord | Learned Research repair station intel 11507 | -5/Warlord | Learned Research garrison access intel 11507 | -5/Warlord | Learned Research trap positions 11507 | -5/Warlord | Learned Testing emergency access door positions 11507 | -5/Warlord | Learned Testing stockpile data 11670 | -5/Warlord | Met Warlord 11685 | -5/Warlord | Opened Warlord's prototype stash 11693 | -5/Warlord | Found Prototype Reactor 11695 | -5/Warlord | Warlord's base attacked by MAIN.C 11832 | -5/Warlord | Found Prototype Energy Cannon 11832 | -5/Warlord | Identified Vortex Driver 11837 | -5/Warlord | Found Vortex Driver 11943 | -5/Warlord | Core integrity fell below 50% 12045 | -5/Warlord | Warlord forces counterattacked 12067 | -5/Warlord | Spotted Executioner 12073 | -5/Warlord | Destroyed Executioner 12073 | -5/Warlord | Spotted Executioner 12080 | -5/Warlord | Destroyed X9-FGK(g) 12101 | -5/Warlord | Destroyed 8 combat bots 12104 | -5/Warlord | Spotted Executioner 12113 | -5/Warlord | Destroyed Executioner 12123 | -5/Warlord | Spotted Striker 12139 | -5/Warlord | Spotted Striker 12187 | -5/Warlord | Found Prototype Device 12187 | -5/Warlord | Identified Adv. Kinecellerator 12191 | -5/Warlord | Spotted Executioner 12218 | -5/Warlord | Spotted Executioner 12229 | -5/Warlord | Spotted Striker 12242 | -5/Warlord | Destroyed Striker 12251 | -5/Warlord | Discovered new exit (range 21) 12295 | -5/Warlord | Spotted Executioner 12295 | -5/Warlord | Spotted Striker 12295 | -5/Warlord | Spotted Striker 12297 | -5/Warlord | Identified exit to Proximity Caves 12300 | -5/Warlord | Entered Proximity Caves 12331 | -4/Proximity Caves | Lost 6 parts (1p3n2w) 12585 | -4/Proximity Caves | Spotted B-86 Titan 12589 | -4/Proximity Caves | Build established: Scavenger-Mutant 12640 | -4/Proximity Caves | Discovered new exit (range 9) 12665 | -4/Proximity Caves | Identified exit to Factory 12668 | -4/Proximity Caves | Entered Factory 12668 | -4/Factory | Evolved 2 slots: Power x1, Propulsion x1 12670 | -4/Factory | Identified Vortex Chain Reactor 12862 | -4/Factory | Discovered new exit (range 22) 13070 | -4/Factory | Lost 4 parts (1n2u1w) 13084 | -4/Factory | Identified exit to Research 13161 | -4/Factory | Build established: Scavenger-Skirmisher 13584 | -4/Factory | Discovered new exit (range 17) 13603 | -4/Factory | Incoming investigation squad redirected 13613 | -4/Factory | Identified exit to Upper Caves 13616 | -4/Factory | Entered Upper Caves 13849 | -4/Upper Caves | Attracted the attention of an 0b10 outpost 14003 | -4/Upper Caves | Discovered new exit (range 3) 14006 | -4/Upper Caves | Identified exit to Upper Caves 14008 | -4/Upper Caves | Entered another Upper Caves area 14014 | -4/Upper Caves | Discovered exit to Research (range 18) 14130 | -4/Upper Caves | Learned 4 Research zone layouts 14402 | -4/Upper Caves | Encountered a Warlord checkpoint 14494 | -4/Upper Caves | Attracted the attention of an 0b10 checkpoint 14522 | -4/Upper Caves | Discovered new exit (range 9) 14535 | -4/Upper Caves | Identified exit to Zhirov 14537 | -4/Upper Caves | Entered Zhirov 14540 | -4/Zhirov | Discovered new exit (range 3) 14542 | -4/Zhirov | Identified exit to Proximity Caves 14569 | -4/Zhirov | Met Zhirov 14604 | -4/Zhirov | Found Alien Artifact 14604 | -4/Zhirov | Identified Integrated Reactor 14604 | -4/Zhirov | Installed Integrated Reactor, increased core energy generation (+10) 14664 | -4/Zhirov | Found Alien Artifact 14704 | -4/Zhirov | Learned location of Quarantine (-2) 14704 | -4/Zhirov | Learned location of Testing (-3) 14704 | -4/Zhirov | Learned location of Command (-1) 14712 | -4/Zhirov | Zhirov requested help retrieving the SGEMP Prototype 14777 | -4/Zhirov | Entered Proximity Caves 14927 | -3/Proximity Caves | Lost 3 parts (2n1w) 15119 | -3/Proximity Caves | Attracted the attention of an 0b10 checkpoint 15153 | -3/Proximity Caves | Discovered exit to Research (range 19) 15185 | -3/Proximity Caves | Entered Research 15185 | -3/Research | Evolved 2 slots: Utility x2 15186 | -3/Research | Identified exit to Research 15187 | -3/Research | Loaded intel: 107 trap records 15188 | -3/Research | Loaded intel: 4 repair station locations 15189 | -3/Research | Loaded intel: 3 garrison access locations 15265 | -3/Research | Discovered new exit (range 15) 15294 | -3/Research | Identified exit to Testing 15355 | -3/Research | Discovered exit to Research (range 15) 15697 | -3/Research | Destroyed 7 combat bots 15968 | -3/Research | First assault squad dispatched 15987 | -3/Research | Incoming assault squad redirected 16023 | -3/Research | Entered Testing 16172 | -3/Testing | Spotted PL-R4JX0VU3IY 16239 | -3/Testing | Lost 3 parts (1u2w) 16289 | -3/Testing | Found Portable AFG 16373 | -3/Testing | Found Tesla Bomb Launcher 16409 | -3/Testing | Spotted Striker 16410 | -3/Testing | Spotted Striker 16419 | -3/Testing | Spotted Alpha 7 16424 | -3/Testing | Destroyed Striker 16437 | -3/Testing | Destroyed Striker 16466 | -3/Testing | System corruption reached 10% 16485 | -3/Testing | Destroyed Alpha 7 16502 | -3/Testing | Lost 7 parts (1p3n2u1w) 16506 | -3/Testing | Found Prototype Processor 16506 | -3/Testing | Identified Exp. Target Analyzer 16510 | -3/Testing | Found Prototype Device 16510 | -3/Testing | Identified Exp. ECM Suite 16582 | -3/Testing | Stole the SGEMP Prototype 16715 | -3/Testing | Lost 3 parts (2n1w) 16849 | -3/Testing | Found Hvy. Insulated Plating 16854 | -3/Testing | Found Hvy. Insulated Plating 17107 | -3/Testing | Found Prototype Energy Cannon 17107 | -3/Testing | Identified Imp. Potential Cannon 17111 | -3/Testing | Found Prototype Energy Cannon 17368 | -3/Testing | Discovered exit to Research (range 6) 17454 | -3/Testing | Entered Research 17454 | -2/Research | Warlord forces began assault on 0b10 17454 | -2/Research | Evolved 2 slots: Utility x1, Weapon x1 17477 | -2/Research | Found Prototype Device 17477 | -2/Research | Identified Exp. Actuator Array 17564 | -2/Research | Research machine network offline 17738 | -2/Research | Destroyed B-90 Cyclops 17754 | -2/Research | Discovered new exit (range 15) 17785 | -2/Research | Spotted Executioner 17790 | -2/Research | Spotted Striker 17796 | -2/Research | Destroyed Executioner 17805 | -2/Research | Destroyed Striker 17820 | -2/Research | System corruption reached 10% 17874 | -2/Research | Identified exit to Access 17875 | -2/Research | Spotted Executioner 17913 | -2/Research | Borebot progress halted 17966 | -2/Research | Spotted Striker 17969 | -2/Research | Spotted Executioner 17974 | -2/Research | Destroyed Executioner 17975 | -2/Research | Spotted Executioner 17994 | -2/Research | Destroyed Executioner 17998 | -2/Research | Destroyed Executioner 18031 | -2/Research | Lost 5 parts (1p2n2w) 18036 | -2/Research | Borebot progress halted 18046 | -2/Research | Spotted Executioner 18066 | -2/Research | Spotted Executioner 18066 | -2/Research | Spotted Executioner 18068 | -2/Research | Spotted Striker 18077 | -2/Research | System corruption reached 30% 18084 | -2/Research | Core integrity fell below 50% 18096 | -2/Research | Core integrity fell below 20% 18099 | -2/Research | Released all parts (7) 18122 | -2/Research | Lost 11 parts (2p3n3u3w) 18178 | -2/Research | Entered Access 18178 | -1/Access | Evolved 2 slots: Utility x2 18179 | -1/Access | Loaded intel: 110 machine locations 18179 | -1/Access | Loaded intel: 67 trap records 18179 | -1/Access | Identified exit to Surface 18179 | -1/Access | Discovered exit to Surface (range 165) 18179 | -1/Access | Identified exit to Command 18179 | -1/Access | Discovered exit to Command (range 90) 18179 | -1/Access | Delivered the SGEMP Prototype to Zhirov 18179 | -1/Access | Zhirov transferred Access data 18205 | -1/Access | Zhirov warped through subspace 18242 | -1/Access | Released all parts (3) 18320 | -1/Access | Core integrity fell below 50% 18358 | -1/Access | Core integrity fell below 20% 18362 | -1/Access | Build established: Mutant 18372 | -1/Access | Incoming investigation squad redirected 18407 | -1/Access | Destroyed by H-88 Terminator with KE Penetrator Last Messages --------------- EM_IMPRINTER_OVERLOAD 18349_ ALERT: Suspicious activity at Fabricator A001. Dispatching Investigation squad. 18355_ A-15 Conveyor suffers critical hit (Destroy). 18364_ W-44 Eye sends out distress signal. 18369_ Slug penetrates Wall. 18372_ ALERT: Higher priority target reported, redirecting investigation. 18372_ Critical hit (Burn: +37). 18377_ Slammed into K-01 Serf. 18377_ K-01 Serf destroyed. 18378_ Acquired 25 matter. 18389_ W-44 Eye sends out distress signal. 18389_ Slammed into K-01 Serf. 18401_ Slug penetrates Wall. 18401_ Slug penetrates K-01 Serf. 18401_ K-01 Serf destroyed. 18403_ Penetrated by Slug. 18403_ Slug penetrates Wall. 18404_ Penetrated by Slug. 18407_ Slug penetrates Wall. Map ----- +----------------------------------------------------+ | # #### ### ##### ##### ####### | | # #### ### ##### ## ###### | | ######### ### + ## | | + #################+## ##### | | # ################ ##### | | # + ##### ###### | | # ################ ########## ####### | | # ################ ########## ####### | | # ################ ########## ####### | | ######################### ########## ####### | | ## ############## % ########## ## | | ## ############## ######### # | | ## " ############## ######### "" # | | ## """ ############## ^^ T" + | | ## """ ############## ^ ###### # | | ## " ############## ###### # | | ## ############## ^ ######## ######## | | # ############## # # ######## | | ######+################# ^ # # ######## | | #### #### + # ######## | | + ####k # # ######## | | #### #### ^ # # | | ##### #### " #### h # ########## | | ##### #### """ #### h # ########## | | ###### #### """ #### # ########## | | ###### + " ####@ ################# | | ###### #### #### ##+################# | | ###### #### #### ## # """""" | | ###### ########+####### ## # """""" | | ##### ##### ##### ## # """""" | | ##### ##### ## # """""" | | ##### + + """""" | | ##### ###### # # | | ##### ##### ###### ####+### | | ####### ################## + | | ####### ##################+#####+## # | | ####### ############## # # | | ###### ############# # + | | ###### + " # # | | ###### ############# """" # #######+#### | | ###################### """"" # | | # ################# """"" + | | # ################# """" # | | # ################# " # | | # ### ##### # ! | | # + + ##### # | | # # # " ##### # | | # # # """ ##### # | | # # + """#######+########## ! | | # # # " ##### # | +----------------------------------------------------+ Best States ------------- Heat Dissipation 149 Energy Generation 85 Energy Capacity 1200 Matter Stores 534 Matter Capacity 800 Sight Range 22 Robot Scan Range 20 Terrain Scan Range 20 Terrain Scan Density 210 Jamming Range 14 Power Amplification 40 Armor Coverage 450 Resistance: KI 25 Resistance: TH 30 Resistance: EX 50 Resistance: EM 25 Propulsion Shielding 90 Utility Shielding 90 Weapon Cycling 20 Evasion (%) 53 Targeting Accuracy 10 Launcher Accuracy 30 Target Analysis 10 Core Analysis 6 Armor Integrity Analysis 30 Recoil Reduction 5 Kinecelleration 50 Salvage Targeting 4 Offensive Hacking 21 Defensive Hacking 10 Item Schematics ----------------- Huge Storage Unit | -10/Mines | Hacked Hcp. Storage Unit | -10/Mines | Hacked Hcp. Matter Pod | -10/Mines | Hacked Kinecellerator | -7/Zion | Archive Plasma Rifle | -7/Zion | Archive Plasma Cannon | -7/Zion | Archive Mak. Hover Unit | -7/Zion | Archive Great Axe | -7/Zion | Archive Imp. Actuator Array | -7/Zion | Archive Gauss Rifle | -7/Zion | Archive Mass Driver | -7/Zion | Archive Neutrino Core | -7/Zion | Archive Hvy. Battle Rifle | -7/Zion | Archive Fusion Compressor | -7/Zion | Archive Imp. Deuterium Engine | -7/Zion | Archive Enh. Optical Array | -7/Zion | Archive Stasis Canceller | -7/Zion | Archive Energy Filter | -7/Zion | Archive Combat Drone Bay | -6/Data Miner | Free Lgt. Regenerative Plating | -6/Data Miner | Free Cld. Nuclear Pulse Thruster | -6/Data Miner | Free Imp. Energy Well | -6/Data Miner | Free Tri-rail Accelerator | -6/Data Miner | Free Adv. Thermal Shield | -6/Data Miner | Free Adv. Medium Treads | -6/Data Miner | Free Hvy. Disruptor Cannon | -6/Data Miner | Free Nova Cannon | -6/Data Miner | Free Assault Drone Bay | -4/Zhirov | Free Exp. Heat Sink | -4/Zhirov | Free Exp. Optical Array | -4/Zhirov | Free Imp. Arc Thrower | -4/Zhirov | Free Robot Schematics ------------------ W-25 Informer | -7/Zion | Archive R-06 Scavenger | -7/Zion | Archive G-47 Trooper | -7/Zion | Archive Y-54 Guardian | -6/Data Miner | Free L-41 Fighter | -6/Data Miner | Free Y-64 Sentinel | -6/Data Miner | Free O-32 Director | -6/Data Miner | Free Fabricated ------------ Nothing Alien Tech Used ----------------- Integrated Reactor Achievements -------------- Max Potential Reappropriation Challenges ------------ None Game ------ Seed XenonAlertBattery Manual? 0 Play Time 04:40:02 Cumulative 809.7 hours Start 2022.12.10 @ 13:23:10 End 2022.12.10 @ 23:30:11 Sessions 19 Manual Loads 0 Difficulty Rogue Special Mode None Game No. 421 Rogue 294 Adventurer 125 Explorer 2 Win Type - Total 96 Types 79/7/5/1/1/0/0/2/1 Lore% 83 Gallery% 89 Achievement% 80 Wizard Run 0 Options --------- ASCII 0 Keyboard 1 Movement Numpad Keybinds 0 Fullscreen 1 Font 36/TerminusFine Map View 76x50 Tactical HUD 1 Map Filters NONE Filters NONE Steam 1 RUN: b00ff394-fd54-417f-8644-b04239529ab9